[Event "FIDE Grand Swiss 2023"]
[Site "Villa Marina, Douglas, Isle of Man"]
[Date "2023.10.25"]
[Round "1.6"]
[White "Rapport, Richard"]
[Black "Yilmaz, Mustafa"]
[Result "1-0"]
[WhiteElo "2752"]
[BlackElo "2640"]
[EventDate "2023.10.25"]
[ECO "B50"]
[PlyCount "93"]
[BlackFideId "6302718"]
[TimeControl "40/100 + 20/50 + 15 + 30s/move"]
[WhiteFideId "738590"]

1.e4 {[%clk 01:40:17] [%emt 00:00:41]} 1...c5 {[%clk 01:40:51] [%emt 00:00:10]} 
2.Nf3 {[%clk 01:40:11] [%emt 00:00:36]} 2...d6 {[%clk 01:41:16] [%emt 00:00:05]} 
3.Be2 {[%clk 01:39:50] [%emt 00:00:51]} 3...Nf6 {[%clk 01:39:29] [%emt
00:02:17]} 4.c3 {[%clk 01:39:58] [%emt 00:00:22]} 4...g6 {[%clk 01:27:57] [%emt
00:12:02]} 5.O-O {[%clk 01:40:00] [%emt 00:00:27]} 5...Bg7 {[%clk 01:28:24]
[%emt 00:00:04]} 6.Bb5+ {[%clk 01:40:15] [%emt 00:00:15]} 6...Bd7 {[%clk
01:21:49] [%emt 00:07:05]} 7.Bxd7+ {[%clk 01:40:31] [%emt 00:00:15]} 7...Nfxd7 
{[%clk 01:21:25] [%emt 00:00:53]} 8.d4 {[%clk 01:40:43] [%emt 00:00:18]} 
8...Nc6 {[%clk 01:17:56] [%emt 00:03:59]} 9.Be3 {[%clk 01:23:22] [%emt
00:17:51]} 9...O-O {[%clk 01:14:55] [%emt 00:03:31]} 10.a4 {[%clk 01:20:18]
[%emt 00:03:34]} 10...Rc8 {[%clk 00:58:35] [%emt 00:16:49]} 11.d5 {[%clk
01:14:49] [%emt 00:06:00]} 11...Na5 {[%clk 00:50:09] [%emt 00:08:56]} 12.Nbd2 
{[%clk 01:09:22] [%emt 00:05:56]} 12...c4 {[%clk 00:44:47] [%emt 00:05:54]} 
13.h4 {[%clk 00:52:50] [%emt 00:17:01]} 13...Nc5 {[%clk 00:41:13] [%emt
00:04:04]} 14.h5 {[%clk 00:48:25] [%emt 00:04:55]} 14...Qd7 {[%clk 00:33:38]
[%emt 00:08:04]} 15.hxg6 {[%clk 00:33:41] [%emt 00:15:14]} 15...hxg6 {[%clk
00:34:07] [%emt 00:00:02]} 16.g3 {[%clk 00:33:47] [%emt 00:00:25]} 16...Qg4 
{[%clk 00:30:02] [%emt 00:04:34]} 17.Bxc5 {[%clk 00:26:24] [%emt 00:07:54]} 
17...Rxc5 {[%clk 00:30:08] [%emt 00:00:23]} 18.Kg2 {[%clk 00:26:42] [%emt
00:00:12]} 18...e6 {[%clk 00:24:54] [%emt 00:05:43]} 19.Rh1 {[%clk 00:26:15]
[%emt 00:00:58]} 19...Bf6 {[%clk 00:20:28] [%emt 00:04:56]} 20.Qe1 {[%clk
00:19:27] [%emt 00:07:18]} 20...exd5 {[%clk 00:14:21] [%emt 00:06:38]} 21.exd5 
{[%clk 00:19:52] [%emt 00:00:05]} 21...Rxd5 {[%clk 00:14:36] [%emt 00:00:15]} 
22.Ne4 {[%clk 00:20:11] [%emt 00:00:11]} 22...Qf5 {[%clk 00:12:12] [%emt
00:02:52]} 23.Nxf6+ {[%clk 00:11:54] [%emt 00:08:48]} 23...Qxf6 {[%clk 00:12:41]
[%emt 00:00:02]} 24.Qe4 {[%clk 00:11:15] [%emt 00:01:09]} 24...Rd3 {[%clk
00:08:45] [%emt 00:04:25]} 25.Rh4 {[%clk 00:09:02] [%emt 00:02:43]} 25...Nb3 
{[%clk 00:07:58] [%emt 00:01:17]} 26.Rah1 {[%clk 00:08:59] [%emt 00:00:33]} 
26...Nd2 {[%clk 00:03:38] [%emt 00:04:51]} 27.Nxd2 {[%clk 00:08:06] [%emt
00:01:22]} 27...Rxd2 {[%clk 00:04:06] [%emt 00:00:02]} 28.Qe3 {[%clk 00:08:30]
[%emt 00:00:06]} 28...Rd3 {[%clk 00:03:12] [%emt 00:01:23]} 29.Rh8+ {[%clk
00:05:23] [%emt 00:03:38]} 29...Qxh8 {[%clk 00:03:39] [%emt 00:00:03]} 30.Rxh8+ 
{[%clk 00:05:50] [%emt 00:00:03]} 30...Kxh8 {[%clk 00:04:04] [%emt 00:00:05]} 
31.Qxa7 {[%clk 00:06:16] [%emt 00:00:05]} 31...d5 {[%clk 00:01:35] [%emt
00:02:59]} 32.Qxb7 {[%clk 00:06:07] [%emt 00:00:38]} 32...d4 {[%clk 00:01:51]
[%emt 00:00:14]} 33.Qc7 {[%clk 00:04:07] [%emt 00:02:30]} 33...dxc3 {[%clk
00:02:04] [%emt 00:00:17]} 34.Qxc4 {[%clk 00:04:31] [%emt 00:00:06]} 34...Rfd8 
{[%clk 00:01:35] [%emt 00:00:59]} 35.b4 {[%clk 00:01:18] [%emt 00:03:44]} 
35...Kg8 {[%clk 00:00:43] [%emt 00:01:22]} 36.b5 {[%clk 00:01:45] [%emt
00:00:03]} 36...R3d4 {[%clk 00:00:47] [%emt 00:00:25]} 37.Qc7 {[%clk 00:02:09]
[%emt 00:00:06]} 37...c2 {[%clk 00:00:37] [%emt 00:00:41]} 38.Qxc2 {[%clk
00:02:05] [%emt 00:00:33]} 38...Rb4 {[%clk 00:00:36] [%emt 00:00:31]} 39.Qc7 
{[%clk 00:01:53] [%emt 00:00:42]} 39...Re8 {[%clk 00:00:37] [%emt 00:00:30]} 
40.Qc6 {[%clk 00:01:14] [%emt 00:01:08]} 40...Re6 {[%clk 00:00:32] [%emt
00:00:35]} 41.Qc8+ {[%clk 00:01:13] [%emt 00:00:30]} 41...Kh7 {[%clk 00:00:50]
[%emt 00:00:14]} 42.Qf8 {[%clk 00:00:42] [%emt 00:01:00]} 42...Ree4 {[%clk
00:49:44] [%emt 00:01:37]} 43.Qxf7+ {[%clk 00:50:55] [%emt 00:00:17]} 43...Kh6 
{[%clk 00:50:07] [%emt 00:00:07]} 44.f4 {[%clk 00:46:09] [%emt 00:05:15]} 
44...Rxa4 {[%clk 00:48:38] [%emt 00:02:00]} 45.b6 {[%clk 00:43:43] [%emt
00:02:55]} 45...Ra8 {[%clk 00:45:59] [%emt 00:03:09]} 46.f5 {[%clk 00:42:08]
[%emt 00:02:05]} 46...Rg4 {[%clk 00:45:36] [%emt 00:00:53]} 47.fxg6 {[%clk
00:41:50] [%emt 00:00:48]} 1-0

[Event "FIDE Grand Swiss 2023"]
[Site "Villa Marina, Douglas, Isle of Man"]
[Date "2023.10.25"]
[Round "1.7"]
[White "Warmerdam, Max"]
[Black "Aronian, Levon"]
[Result "0-1"]
[WhiteElo "2636"]
[BlackElo "2742"]
[EventDate "2023.10.25"]
[ECO "A28"]
[PlyCount "82"]
[BlackFideId "13300474"]
[TimeControl "40/100 + 20/50 + 15 + 30s/move"]
[WhiteFideId "1048104"]

1.c4 {[%clk 01:40:55] [%emt 00:00:04]} 1...e5 {[%clk 01:40:54] [%emt 00:00:06]} 
2.Nc3 {[%clk 01:41:12] [%emt 00:00:13]} 2...Nf6 {[%clk 01:41:10] [%emt
00:00:14]} 3.Nf3 {[%clk 01:41:31] [%emt 00:00:10]} 3...Nc6 {[%clk 01:41:34]
[%emt 00:00:07]} 4.e4 {[%clk 01:41:41] [%emt 00:00:19]} 4...Bc5 {[%clk 01:39:03]
[%emt 00:03:02]} 5.Nxe5 {[%clk 01:42:01] [%emt 00:00:10]} 5...Qe7 {[%clk
01:39:26] [%emt 00:00:08]} 6.Nxc6 {[%clk 01:36:28] [%emt 00:06:02]} 6...dxc6 
{[%clk 01:39:21] [%emt 00:00:35]} 7.d3 {[%clk 01:31:18] [%emt 00:05:40]} 
7...Be6 {[%clk 01:39:38] [%emt 00:00:14]} 8.Be2 {[%clk 01:26:16] [%emt
00:05:32]} 8...O-O-O {[%clk 01:36:30] [%emt 00:03:38]} 9.Qc2 {[%clk 01:25:04]
[%emt 00:01:41]} 9...Ng4 {[%clk 01:32:05] [%emt 00:04:55]} 10.Bxg4 {[%clk
01:20:47] [%emt 00:04:47]} 10...Bxg4 {[%clk 01:32:22] [%emt 00:00:14]} 11.Bf4 
{[%clk 01:05:30] [%emt 00:15:46]} 11...f5 {[%clk 01:22:24] [%emt 00:10:28]} 
12.f3 {[%clk 01:01:39] [%emt 00:04:21]} 12...Rhf8 {[%clk 01:18:08] [%emt
00:04:46]} 13.fxg4 {[%clk 00:53:23] [%emt 00:08:45]} 13...fxe4 {[%clk 01:17:56]
[%emt 00:00:43]} 14.Nxe4 {[%clk 00:43:59] [%emt 00:09:53]} 14...Rxf4 {[%clk
01:17:35] [%emt 00:00:52]} 15.O-O-O {[%clk 00:44:24] [%emt 00:00:05]} 15...Rxg4 
{[%clk 01:17:32] [%emt 00:00:33]} 16.Nxc5 {[%clk 00:41:37] [%emt 00:03:17]} 
16...Qxc5 {[%clk 01:17:44] [%emt 00:00:18]} 17.Kb1 {[%clk 00:40:22] [%emt
00:01:44]} 17...b6 {[%clk 01:10:56] [%emt 00:07:17]} 18.Rhf1 {[%clk 00:38:21]
[%emt 00:02:31]} 18...Kb7 {[%clk 01:10:52] [%emt 00:00:35]} 19.Rf3 {[%clk
00:34:35] [%emt 00:04:15]} 19...h5 {[%clk 01:10:24] [%emt 00:00:58]} 20.g3 
{[%clk 00:33:14] [%emt 00:01:51]} 20...g5 {[%clk 01:07:55] [%emt 00:02:59]} 
21.Qe2 {[%clk 00:27:32] [%emt 00:06:12]} 21...Rgd4 {[%clk 01:07:08] [%emt
00:01:17]} 22.Re3 {[%clk 00:26:04] [%emt 00:01:57]} 22...g4 {[%clk 01:04:05]
[%emt 00:03:33]} 23.a3 {[%clk 00:19:57] [%emt 00:06:37]} 23...Rxc4 {[%clk
00:59:10] [%emt 00:05:26]} 24.Re5 {[%clk 00:19:57] [%emt 00:00:29]} 24...Rc2 
{[%clk 00:59:15] [%emt 00:00:26]} 25.Rxc5 {[%clk 00:13:03] [%emt 00:07:24]} 
25...Rxe2 {[%clk 00:59:27] [%emt 00:00:18]} 26.Rxh5 {[%clk 00:13:29] [%emt
00:00:04]} 26...Rf8 {[%clk 00:59:50] [%emt 00:00:07]} 27.Ka2 {[%clk 00:13:18]
[%emt 00:00:41]} 27...Rff2 {[%clk 01:00:14] [%emt 00:00:06]} 28.Rb1 {[%clk
00:13:45] [%emt 00:00:03]} 28...Rd2 {[%clk 01:00:34] [%emt 00:00:10]} 29.Rh4 
{[%clk 00:09:38] [%emt 00:04:37]} 29...Rxd3 {[%clk 01:00:52] [%emt 00:00:11]} 
30.Rxg4 {[%clk 00:09:57] [%emt 00:00:11]} 30...Rxh2 {[%clk 01:01:17] [%emt
00:00:06]} 31.Rh4 {[%clk 00:02:21] [%emt 00:08:05]} 31...Rg2 {[%clk 01:01:29]
[%emt 00:00:18]} 32.Rhh1 {[%clk 00:02:46] [%emt 00:00:06]} 32...c5 {[%clk
01:01:07] [%emt 00:00:52]} 33.Rhg1 {[%clk 00:02:21] [%emt 00:00:54]} 33...Rgxg3 
{[%clk 01:01:25] [%emt 00:00:13]} 34.Rxg3 {[%clk 00:02:44] [%emt 00:00:06]} 
34...Rxg3 {[%clk 01:01:52] [%emt 00:00:04]} 35.Rc1 {[%clk 00:02:29] [%emt
00:00:45]} 35...Rg4 {[%clk 01:01:08] [%emt 00:01:14]} 36.Rh1 {[%clk 00:02:13]
[%emt 00:00:46]} 36...a5 {[%clk 01:00:53] [%emt 00:00:45]} 37.Rh3 {[%clk
00:01:20] [%emt 00:01:22]} 37...b5 {[%clk 01:00:30] [%emt 00:00:53]} 38.Rf3 
{[%clk 00:01:02] [%emt 00:00:48]} 38...Kb6 {[%clk 01:00:21] [%emt 00:00:40]} 
39.Kb3 {[%clk 00:01:10] [%emt 00:00:21]} 39...a4+ {[%clk 00:59:35] [%emt
00:01:17]} 40.Kc2 {[%clk 00:01:28] [%emt 00:00:12]} 40...b4 {[%clk 00:59:45]
[%emt 00:00:20]} 41.Rf8 {[%clk 00:49:26] [%emt 00:02:31]} 41...b3+ {[%clk
01:49:18] [%emt 00:00:58]} 0-1

[Event "FIDE Grand Swiss 2023"]
[Site "Villa Marina, Douglas, Isle of Man"]
[Date "2023.10.25"]
[Round "1.8"]
[White "Praggnanandhaa, R"]
[Black "Aryan, Chopra"]
[Result "1/2-1/2"]
[WhiteElo "2738"]
[BlackElo "2634"]
[EventDate "2023.10.25"]
[ECO "D11"]
[PlyCount "66"]
[BlackFideId "5084423"]
[TimeControl "40/100 + 20/50 + 15 + 30s/move"]
[WhiteFideId "25059530"]

1.d4 {[%clk 01:40:04] [%emt 00:00:53]} 1...d5 {[%clk 01:40:51] [%emt 00:00:10]} 
2.c4 {[%clk 01:40:27] [%emt 00:00:07]} 2...c6 {[%clk 01:41:16] [%emt 00:00:05]} 
3.Nf3 {[%clk 01:40:36] [%emt 00:00:20]} 3...Nf6 {[%clk 01:41:38] [%emt
00:00:09]} 4.g3 {[%clk 01:40:41] [%emt 00:00:25]} 4...Bg4 {[%clk 01:41:13] [%emt
00:00:55]} 5.Ne5 {[%clk 01:40:18] [%emt 00:00:53]} 5...Bf5 {[%clk 01:41:09]
[%emt 00:00:35]} 6.cxd5 {[%clk 01:40:15] [%emt 00:00:32]} 6...cxd5 {[%clk
01:38:14] [%emt 00:03:25]} 7.Qb3 {[%clk 01:39:31] [%emt 00:01:14]} 7...Qb6 
{[%clk 01:27:08] [%emt 00:11:37]} 8.Qxb6 {[%clk 01:07:38] [%emt 00:32:24]} 
8...axb6 {[%clk 01:27:33] [%emt 00:00:05]} 9.Nc3 {[%clk 01:04:37] [%emt
00:03:31]} 9...e6 {[%clk 01:08:26] [%emt 00:19:38]} 10.e3 {[%clk 00:58:40] [%emt
00:06:25]} 10...Bb4 {[%clk 00:57:01] [%emt 00:11:55]} 11.Bb5+ {[%clk 00:55:39]
[%emt 00:03:31]} 11...Ke7 {[%clk 00:51:08] [%emt 00:06:24]} 12.Bd2 {[%clk
00:51:32] [%emt 00:04:37]} 12...Na6 {[%clk 00:45:13] [%emt 00:06:26]} 13.f3 
{[%clk 00:46:30] [%emt 00:05:31]} 13...h5 {[%clk 00:41:08] [%emt 00:04:34]} 
14.Rc1 {[%clk 00:37:08] [%emt 00:09:53]} 14...Rhc8 {[%clk 00:33:35] [%emt
00:08:04]} 15.h3 {[%clk 00:30:45] [%emt 00:06:52]} 15...Bd6 {[%clk 00:25:37]
[%emt 00:08:28]} 16.g4 {[%clk 00:23:27] [%emt 00:07:47]} 16...Bh7 {[%clk
00:25:59] [%emt 00:00:08]} 17.Kf2 {[%clk 00:19:02] [%emt 00:04:55]} 17...Nc7 
{[%clk 00:20:45] [%emt 00:05:45]} 18.Be2 {[%clk 00:16:09] [%emt 00:03:22]} 
18...Bxe5 {[%clk 00:16:52] [%emt 00:04:24]} 19.dxe5 {[%clk 00:16:34] [%emt
00:00:05]} 19...Nd7 {[%clk 00:17:18] [%emt 00:00:04]} 20.f4 {[%clk 00:14:04]
[%emt 00:02:59]} 20...hxg4 {[%clk 00:17:36] [%emt 00:00:12]} 21.hxg4 {[%clk
00:14:29] [%emt 00:00:05]} 21...Bg6 {[%clk 00:17:59] [%emt 00:00:07]} 22.b4 
{[%clk 00:07:26] [%emt 00:07:34]} 22...f6 {[%clk 00:17:49] [%emt 00:00:40]} 
23.exf6+ {[%clk 00:07:41] [%emt 00:00:15]} 23...Nxf6 {[%clk 00:18:13] [%emt
00:00:05]} 24.Bf3 {[%clk 00:07:05] [%emt 00:01:06]} 24...Nce8 {[%clk 00:16:07]
[%emt 00:02:37]} 25.Rh8 {[%clk 00:05:09] [%emt 00:02:26]} 25...Nd6 {[%clk
00:14:07] [%emt 00:02:30]} 26.Rxc8 {[%clk 00:05:27] [%emt 00:00:12]} 26...Rxc8 
{[%clk 00:14:32] [%emt 00:00:04]} 27.f5 {[%clk 00:04:44] [%emt 00:01:13]} 
27...Bf7 {[%clk 00:11:11] [%emt 00:03:52]} 28.g5 {[%clk 00:04:12] [%emt
00:01:02]} 28...Nfe4+ {[%clk 00:11:30] [%emt 00:00:11]} 29.Nxe4 {[%clk 00:04:06]
[%emt 00:00:35]} 29...Nxe4+ {[%clk 00:11:41] [%emt 00:00:19]} 30.Bxe4 {[%clk
00:04:29] [%emt 00:00:07]} 30...Rxc1 {[%clk 00:12:07] [%emt 00:00:04]} 31.Bxc1 
{[%clk 00:04:51] [%emt 00:00:07]} 31...dxe4 {[%clk 00:12:32] [%emt 00:00:05]} 
32.Bb2 {[%clk 00:04:25] [%emt 00:00:56]} 32...exf5 {[%clk 00:12:42] [%emt
00:00:21]} 33.Bxg7 {[%clk 00:04:48] [%emt 00:00:06]} 33...b5 {[%clk 00:12:55]
[%emt 00:00:17]} 1/2-1/2

[Event "FIDE Grand Swiss 2023"]
[Site "Villa Marina, Douglas, Isle of Man"]
[Date "2023.10.25"]
[Round "1.9"]
[White "Gledura, Benjamin"]
[Black "Vachier-Lagrave, Maxime"]
[Result "1/2-1/2"]
[WhiteElo "2633"]
[BlackElo "2727"]
[EventDate "2023.10.25"]
[ECO "D85"]
[PlyCount "62"]
[BlackFideId "623539"]
[TimeControl "40/100 + 20/50 + 15 + 30s/move"]
[WhiteFideId "712779"]

1.d4 {[%clk 01:40:54] [%emt 00:00:04]} 1...Nf6 {[%emt 00:00:06]} 2.c4 {[%clk
01:41:03] [%emt 00:00:17]} 2...g6 {[%clk 01:41:10] [%emt 00:00:19]} 3.Nc3 
{[%clk 01:40:45] [%emt 00:00:48]} 3...d5 {[%clk 01:41:36] [%emt 00:00:04]} 
4.cxd5 {[%clk 01:40:22] [%emt 00:00:53]} 4...Nxd5 {[%clk 01:42:01] [%emt
00:00:05]} 5.e4 {[%clk 01:40:43] [%emt 00:00:09]} 5...Nxc3 {[%clk 01:42:28]
[%emt 00:00:03]} 6.bxc3 {[%clk 01:41:06] [%emt 00:00:07]} 6...Bg7 {[%clk
01:42:56] [%emt 00:00:02]} 7.Nf3 {[%clk 01:40:14] [%emt 00:01:22]} 7...c5 
{[%clk 01:41:26] [%emt 00:02:00]} 8.Bb5+ {[%clk 01:39:44] [%emt 00:01:00]} 
8...Nc6 {[%clk 01:41:49] [%emt 00:00:07]} 9.Rb1 {[%clk 01:39:33] [%emt
00:00:40]} 9...O-O {[%clk 01:37:32] [%emt 00:04:47]} 10.d5 {[%clk 01:39:31]
[%emt 00:00:32]} 10...Ne5 {[%clk 01:37:53] [%emt 00:00:09]} 11.Nxe5 {[%clk
01:39:47] [%emt 00:00:14]} 11...Bxe5 {[%clk 01:38:17] [%emt 00:00:07]} 12.Qd2 
{[%clk 01:40:04] [%emt 00:00:13]} 12...e6 {[%clk 01:29:14] [%emt 00:09:33]} 
13.f4 {[%clk 01:39:44] [%emt 00:00:50]} 13...Bc7 {[%clk 01:29:36] [%emt
00:00:07]} 14.Bc4 {[%clk 01:38:56] [%emt 00:01:18]} 14...a6 {[%clk 01:22:56]
[%emt 00:07:11]} 15.a4 {[%clk 01:38:27] [%emt 00:00:59]} 15...b5 {[%clk
01:05:06] [%emt 00:18:20]} 16.axb5 {[%clk 01:37:18] [%emt 00:01:39]} 16...axb5 
{[%clk 01:05:31] [%emt 00:00:05]} 17.Bxb5 {[%clk 01:35:56] [%emt 00:01:51]} 
17...exd5 {[%clk 01:01:47] [%emt 00:04:14]} 18.Bc6 {[%clk 01:34:34] [%emt
00:01:52]} 18...Qh4+ {[%clk 00:48:31] [%emt 00:13:46]} 19.g3 {[%clk 01:24:48]
[%emt 00:10:17]} 19...Qh5 {[%clk 00:44:17] [%emt 00:04:43]} 20.Bxd5 {[%clk
01:04:21] [%emt 00:20:57]} 20...Rd8 {[%clk 00:40:51] [%emt 00:03:56]} 21.O-O 
{[%clk 00:58:03] [%emt 00:06:48]} 21...Ra4 {[%clk 00:34:09] [%emt 00:07:12]} 
22.Qc2 {[%clk 00:37:01] [%emt 00:21:32]} 22...Bh3 {[%clk 00:33:07] [%emt
00:01:33]} 23.Be3 {[%clk 00:28:40] [%emt 00:08:51]} 23...Ra3 {[%clk 00:23:36]
[%emt 00:10:01]} 24.Bxc5 {[%clk 00:20:29] [%emt 00:08:41]} 24...Ra5 {[%clk
00:23:41] [%emt 00:00:25]} 25.Bd4 {[%clk 00:20:47] [%emt 00:00:12]} 25...Bxf1 
{[%clk 00:24:03] [%emt 00:00:08]} 26.Rxf1 {[%clk 00:21:09] [%emt 00:00:08]} 
26...Raxd5 {[%clk 00:24:28] [%emt 00:00:04]} 27.exd5 {[%clk 00:21:31] [%emt
00:00:09]} 27...Qxd5 {[%clk 00:24:54] [%emt 00:00:04]} 28.Re1 {[%clk 00:17:29]
[%emt 00:04:31]} 28...Bd6 {[%clk 00:20:32] [%emt 00:04:53]} 29.Qe4 {[%clk
00:15:25] [%emt 00:02:34]} 29...Qb5 {[%clk 00:19:35] [%emt 00:01:26]} 30.f5 
{[%clk 00:11:53] [%emt 00:04:03]} 30...Bc5 {[%clk 00:18:24] [%emt 00:01:42]} 
31.Qe5 {[%clk 00:03:16] [%emt 00:09:07]} 31...Bxd4+ {[%clk 00:18:17] [%emt
00:00:37]} 1/2-1/2

[Event "FIDE Grand Swiss 2023"]
[Site "Villa Marina, Douglas, Isle of Man"]
[Date "2023.10.25"]
[Round "1.10"]
[White "Duda, Jan-Krzysztof"]
[Black "Idani, Pouya"]
[Result "1-0"]
[WhiteElo "2726"]
[BlackElo "2633"]
[EventDate "2023.10.25"]
[ECO "D31"]
[PlyCount "63"]
[BlackFideId "12510130"]
[TimeControl "40/100 + 20/50 + 15 + 30s/move"]
[WhiteFideId "1170546"]

1.c4 {[%clk 01:40:56] [%emt 00:00:02]} 1...e6 {[%clk 01:40:55] [%emt 00:00:06]} 
2.Nc3 {[%clk 01:40:51] [%emt 00:00:35]} 2...d5 {[%clk 01:41:19] [%emt 00:00:05]} 
3.d4 {[%clk 01:41:15] [%emt 00:00:06]} 3...h6 {[%clk 01:41:45] [%emt 00:00:05]} 
4.Nf3 {[%clk 01:40:55] [%emt 00:00:50]} 4...Nf6 {[%clk 01:42:09] [%emt
00:00:05]} 5.Bf4 {[%clk 01:41:09] [%emt 00:00:16]} 5...Bd6 {[%clk 01:42:31]
[%emt 00:00:07]} 6.Bxd6 {[%clk 01:41:16] [%emt 00:00:24]} 6...Qxd6 {[%clk
01:42:55] [%emt 00:00:06]} 7.c5 {[%clk 01:40:48] [%emt 00:00:58]} 7...Qe7 
{[%clk 01:43:19] [%emt 00:00:06]} 8.e3 {[%clk 01:41:14] [%emt 00:00:04]} 
8...O-O {[%clk 01:43:43] [%emt 00:00:06]} 9.b4 {[%clk 01:41:02] [%emt 00:00:41]} 
9...c6 {[%clk 01:39:53] [%emt 00:04:20]} 10.Be2 {[%clk 01:40:38] [%emt
00:00:54]} 10...a6 {[%clk 01:38:29] [%emt 00:01:54]} 11.O-O {[%clk 01:38:09]
[%emt 00:02:58]} 11...Nbd7 {[%clk 01:38:55] [%emt 00:00:05]} 12.a4 {[%clk
01:38:13] [%emt 00:00:25]} 12...e5 {[%clk 01:39:20] [%emt 00:00:05]} 13.Qc2 
{[%clk 01:37:08] [%emt 00:01:36]} 13...e4 {[%clk 01:38:46] [%emt 00:01:04]} 
14.Nd2 {[%clk 01:37:10] [%emt 00:00:27]} 14...Nh7 {[%clk 01:39:10] [%emt
00:00:06]} 15.b5 {[%clk 01:30:22] [%emt 00:07:18]} 15...f5 {[%clk 01:39:35]
[%emt 00:00:06]} 16.Nb3 {[%clk 01:30:04] [%emt 00:00:47]} 16...a5 {[%clk
01:19:12] [%emt 00:20:53]} 17.Qd2 {[%clk 01:28:51] [%emt 00:01:43]} 17...g5 
{[%clk 01:12:00] [%emt 00:07:41]} 18.Nxa5 {[%clk 01:12:26] [%emt 00:16:55]} 
18...Rxa5 {[%clk 01:08:18] [%emt 00:04:12]} 19.Nxd5 {[%clk 01:12:37] [%emt
00:00:19]} 19...cxd5 {[%clk 00:57:24] [%emt 00:11:24]} 20.Qxa5 {[%clk 01:12:55]
[%emt 00:00:13]} 20...Ndf6 {[%clk 00:56:57] [%emt 00:00:57]} 21.Qb6 {[%clk
01:07:07] [%emt 00:06:17]} 21...f4 {[%clk 00:55:39] [%emt 00:01:48]} 22.a5 
{[%clk 01:06:16] [%emt 00:01:22]} 22...f3 {[%clk 00:54:07] [%emt 00:02:02]} 
23.gxf3 {[%clk 01:06:24] [%emt 00:00:22]} 23...Bh3 {[%clk 00:51:09] [%emt
00:03:27]} 24.a6 {[%clk 01:03:08] [%emt 00:03:47]} 24...exf3 {[%clk 00:41:25]
[%emt 00:10:14]} 25.Bxf3 {[%clk 00:58:38] [%emt 00:04:59]} 25...bxa6 {[%clk
00:34:30] [%emt 00:07:26]} 26.bxa6 {[%clk 00:57:39] [%emt 00:01:30]} 26...g4 
{[%clk 00:34:36] [%emt 00:00:23]} 27.Qb7 {[%clk 00:49:41] [%emt 00:08:28]} 
27...Qe6 {[%clk 00:33:50] [%emt 00:01:17]} 28.Bh1 {[%clk 00:48:55] [%emt
00:01:15]} 28...Ng5 {[%clk 00:29:47] [%emt 00:04:33]} 29.a7 {[%clk 00:47:22]
[%emt 00:02:04]} 29...Nf3+ {[%clk 00:23:16] [%emt 00:07:00]} 30.Bxf3 {[%clk
00:47:46] [%emt 00:00:06]} 30...gxf3 {[%clk 00:23:44] [%emt 00:00:03]} 31.Qb8 
{[%clk 00:47:59] [%emt 00:00:16]} 31...Bxf1 {[%clk 00:15:01] [%emt 00:09:13]} 
32.a8=Q {[%clk 00:45:53] [%emt 00:02:36]} 1-0